[Event "Titled Tuesday Blitz March 01 Late 2022"]
[White "Krishnan, Varun"]
[Black "Albornoz Cabrera, Carlos Daniel"]
[WhiteFideId "5054508"]
[BlackFideId "3518736"]
[WhiteElo "2611"]
[BlackElo "2490"]
[Result "1-0"]
[Round "05"]
[TimeControl "180+1"]
[Date "2022.03.01"]
[WhiteClock "0:00:05"]
[BlackClock "0:00:09"]

1. e4 {[%clk 0:02:58]}  e6 {[%clk 0:03:00]} 2. d4 {[%clk 0:02:57]}  d5 {[%clk 0:03:00]} 3. Nc3 {[%clk 0:02:57]}  Nf6 {[%clk 0:02:59]} 4. e5 {[%clk 0:02:58]}  Nfd7 {[%clk 0:03:00]} 5. f4 {[%clk 0:02:58]}  c5 {[%clk 0:03:00]} 6. Nf3 {[%clk 0:02:58]}  Nc6 {[%clk 0:03:01]} 7. Be3 {[%clk 0:02:58]}  Qb6 {[%clk 0:03:01]} 8. Na4 {[%clk 0:02:56]}  Qa5+ {[%clk 0:02:58]} 9. c3 {[%clk 0:02:55]}  cxd4 {[%clk 0:02:48]} 10. b4 {[%clk 0:02:55]}  Qc7 {[%clk 0:02:38]} 11. Nxd4 {[%clk 0:02:54]}  a6 {[%clk 0:02:34]} 12. Rc1 {[%clk 0:02:32]}  Nxd4 {[%clk 0:02:25]} 13. Bxd4 {[%clk 0:02:27]}  b5 {[%clk 0:02:20]} 14. Nb2 {[%clk 0:02:26]}  Bb7 {[%clk 0:02:21]} 15. Bd3 {[%clk 0:02:24]}  Nb6 {[%clk 0:02:14]} 16. O-O {[%clk 0:02:19]}  Nc4 {[%clk 0:02:14]} 17. Rf2 {[%clk 0:02:01]}  g6 {[%clk 0:02:12]} 18. a4 {[%clk 0:01:53]}  Be7 {[%clk 0:02:06]} 19. a5 {[%clk 0:01:51]}  Rc8 {[%clk 0:02:05]} 20. Ra1 {[%clk 0:01:32]}  Bh4 {[%clk 0:02:01]} 21. g3 {[%clk 0:01:31]}  Be7 {[%clk 0:02:01]} 22. Qf3 {[%clk 0:01:27]}  O-O {[%clk 0:01:55]} 23. Nd1 {[%clk 0:01:26]}  f5 {[%clk 0:01:54]} 24. h4 {[%clk 0:01:21]}  h5 {[%clk 0:01:53]} 25. Re2 {[%clk 0:01:15]}  Qd7 {[%clk 0:01:52]} 26. Nf2 {[%clk 0:01:14]}  Rc7 {[%clk 0:01:50]} 27. Nh3 {[%clk 0:01:14]}  Rfc8 {[%clk 0:01:50]} 28. Ng5 {[%clk 0:01:13]}  Rc6 {[%clk 0:01:46]} 29. Kg2 {[%clk 0:01:12]}  Bd8 {[%clk 0:01:46]} 30. Rh1 {[%clk 0:00:59]}  Ba8 {[%clk 0:01:45]} 31. Kf2 {[%clk 0:00:54]}  Bc7 {[%clk 0:01:44]} 32. Qg2 {[%clk 0:00:52]}  Bb8 {[%clk 0:01:44]} 33. g4 {[%clk 0:00:52]}  hxg4 {[%clk 0:01:34]} 34. h5 {[%clk 0:00:52]}  Qg7 {[%clk 0:01:00]} 35. hxg6 {[%clk 0:00:48]}  Qxg6 {[%clk 0:00:57]} 36. Qh2 {[%clk 0:00:27]}  Qg7 {[%clk 0:00:56]} 37. Nxe6 {[%clk 0:00:21]}  Rxe6 {[%clk 0:00:52]} 38. Bxf5 {[%clk 0:00:21]}  Rcc6 {[%clk 0:00:49]} 39. Bxe6+ {[%clk 0:00:20]}  Rxe6 {[%clk 0:00:50]} 40. f5 {[%clk 0:00:20]}  Rxe5 {[%clk 0:00:47]} 41. Bxe5 {[%clk 0:00:20]}  Bxe5 {[%clk 0:00:47]} 42. Qh5 {[%clk 0:00:19]}  g3+ {[%clk 0:00:24]} 43. Kf1 {[%clk 0:00:19]}  Ne3+ {[%clk 0:00:13]} 44. Kg1 {[%clk 0:00:19]}  Bc6 {[%clk 0:00:05]} 45. Rxe3 {[%clk 0:00:18]}  d4 {[%clk 0:00:05]} 46. Rxe5 {[%clk 0:00:13]}  Qxe5 {[%clk 0:00:06]} 47. Qh7+ {[%clk 0:00:12]}  Kf8 {[%clk 0:00:07]} 48. Qh8+ {[%clk 0:00:10]}  Qxh8 {[%clk 0:00:07]} 49. Rxh8+ {[%clk 0:00:10]}  Kg7 {[%clk 0:00:08]} 50. Rc8 {[%clk 0:00:06]}  Be4 {[%clk 0:00:08]} 51. Rc7+ {[%clk 0:00:06]}  Kf6 {[%clk 0:00:08]} 52. cxd4 {[%clk 0:00:06]}  Kxf5 {[%clk 0:00:08]} 53. Ra7 {[%clk 0:00:06]}  Kf4 {[%clk 0:00:07]} 54. Rxa6 {[%clk 0:00:06]}  Ke3 {[%clk 0:00:07]} 55. Rb6 {[%clk 0:00:06]}  Kxd4 {[%clk 0:00:07]} 56. Rxb5 {[%clk 0:00:07]}  Kc4 {[%clk 0:00:07]} 57. Rb8 {[%clk 0:00:07]}  Bd5 {[%clk 0:00:07]} 58. a6 {[%clk 0:00:07]}  Kb3 {[%clk 0:00:07]} 59. a7 {[%clk 0:00:07]}  g2 {[%clk 0:00:08]} 60. a8=Q {[%clk 0:00:07]}  Bc4 {[%clk 0:00:08]} 61. Qf3+ {[%clk 0:00:06]}  Ka4 {[%clk 0:00:08]} 62. Qe4 {[%clk 0:00:06]}  Bb5 {[%clk 0:00:09]} 63. Qc2+ {[%clk 0:00:06]}  Ka3 {[%clk 0:00:09]} 64. Ra8+ {[%clk 0:00:06]}  Ba4 {[%clk 0:00:09]} 65. Rxa4# {[%clk 0:00:05]} 1-0


[Site "https://www.chess.com"]

[Event "Titled Tuesday Blitz March 01 Late 2022"]
[White "Landaw, Julian"]
[Black "Derraugh, Geordie"]
[WhiteFideId "2023342"]
[BlackFideId "2603950"]
[WhiteElo "2312"]
[BlackElo "2116"]
[Result "1-0"]
[Round "05"]
[TimeControl "180+1"]
[Date "2022.03.02"]
[WhiteClock "0:00:20"]
[BlackClock "0:00:04"]

1. e4 {[%clk 0:03:00]}  c5 {[%clk 0:02:59]} 2. Nc3 {[%clk 0:03:00]}  g6 {[%clk 0:02:58]} 3. g3 {[%clk 0:03:00]}  Bg7 {[%clk 0:02:58]} 4. Bg2 {[%clk 0:03:00]}  d6 {[%clk 0:02:58]} 5. d3 {[%clk 0:03:00]}  Nh6 {[%clk 0:02:58]} 6. Bg5 {[%clk 0:02:54]}  f6 {[%clk 0:02:58]} 7. Be3 {[%clk 0:02:53]}  O-O {[%clk 0:02:58]} 8. h3 {[%clk 0:02:53]}  Nc6 {[%clk 0:02:57]} 9. Qd2 {[%clk 0:02:54]}  Nf7 {[%clk 0:02:57]} 10. f4 {[%clk 0:02:53]}  Rb8 {[%clk 0:02:57]} 11. Nge2 {[%clk 0:02:51]}  b5 {[%clk 0:02:58]} 12. d4 {[%clk 0:02:51]}  b4 {[%clk 0:02:57]} 13. Na4 {[%clk 0:02:51]}  Qa5 {[%clk 0:02:38]} 14. b3 {[%clk 0:02:48]}  cxd4 {[%clk 0:02:35]} 15. Nxd4 {[%clk 0:02:48]}  Nxd4 {[%clk 0:02:31]} 16. Bxd4 {[%clk 0:02:47]}  e5 {[%clk 0:02:31]} 17. Bb2 {[%clk 0:02:42]}  Bd7 {[%clk 0:02:26]} 18. a3 {[%clk 0:02:14]}  Bxa4 {[%clk 0:02:17]} 19. axb4 {[%clk 0:02:09]}  Qxb4 {[%clk 0:02:01]} 20. Rxa4 {[%clk 0:02:06]}  Qc5 {[%clk 0:01:55]} 21. Qf2 {[%clk 0:01:16]}  Rfc8 {[%clk 0:01:40]} 22. Qxc5 {[%clk 0:01:14]}  Rxc5 {[%clk 0:01:39]} 23. Kd2 {[%clk 0:01:12]}  Bh6 {[%clk 0:01:24]} 24. Rf1 {[%clk 0:01:10]}  Rbc8 {[%clk 0:01:02]} 25. c4 {[%clk 0:01:03]}  Rb8 {[%clk 0:01:02]} 26. Kc2 {[%clk 0:00:47]}  Rb7 {[%clk 0:00:43]} 27. fxe5 {[%clk 0:00:41]}  fxe5 {[%clk 0:00:43]} 28. Bf3 {[%clk 0:00:34]}  Ng5 {[%clk 0:00:38]} 29. Ba3 {[%clk 0:00:23]}  Rc6 {[%clk 0:00:28]} 30. Bg4 {[%clk 0:00:20]}  Bf8 {[%clk 0:00:20]} 31. h4 {[%clk 0:00:19]}  Nxe4 {[%clk 0:00:19]} 32. Be6+ {[%clk 0:00:19]}  Kg7 {[%clk 0:00:19]} 33. Bd5 {[%clk 0:00:19]}  Nxg3 {[%clk 0:00:06]} 34. Bxc6 {[%clk 0:00:19]}  Rc7 {[%clk 0:00:05]} 35. Rxf8 {[%clk 0:00:20]}  Kxf8 {[%clk 0:00:04]} 36. Bxd6+ {[%clk 0:00:20]} 1-0


[Site "https://www.chess.com"]

[Event "Titled Tuesday Blitz March 01 Late 2022"]
[White "Lopez Perdomo, Juan David"]
[Black "Martins, Carlos"]
[WhiteFideId "4405137"]
[BlackFideId "2101688"]
[WhiteElo "1997"]
[BlackElo "2183"]
[Result "0-1"]
[Round "05"]
[TimeControl "180+1"]
[Date "2022.03.02"]
[WhiteClock "0:00:03"]
[BlackClock "0:00:46"]

1. e4 {[%clk 0:03:00]}  c5 {[%clk 0:03:00]} 2. d4 {[%clk 0:03:01]}  cxd4 {[%clk 0:02:58]} 3. c3 {[%clk 0:03:02]}  dxc3 {[%clk 0:02:57]} 4. Nxc3 {[%clk 0:03:02]}  Nc6 {[%clk 0:02:57]} 5. Nf3 {[%clk 0:03:03]}  e6 {[%clk 0:02:57]} 6. Bc4 {[%clk 0:03:04]}  a6 {[%clk 0:02:57]} 7. O-O {[%clk 0:03:05]}  Nge7 {[%clk 0:02:57]} 8. Bg5 {[%clk 0:03:04]}  h6 {[%clk 0:02:57]} 9. Bh4 {[%clk 0:03:04]}  g5 {[%clk 0:02:57]} 10. Bg3 {[%clk 0:03:05]}  Bg7 {[%clk 0:02:47]} 11. Nd5 {[%clk 0:03:04]}  exd5 {[%clk 0:02:42]} 12. exd5 {[%clk 0:03:04]}  Na5 {[%clk 0:02:41]} 13. Be2 {[%clk 0:02:38]}  b5 {[%clk 0:02:40]} 14. Rc1 {[%clk 0:01:43]}  d6 {[%clk 0:02:30]} 15. Nd4 {[%clk 0:01:34]}  O-O {[%clk 0:02:29]} 16. Bh5 {[%clk 0:01:30]}  Bb7 {[%clk 0:02:12]} 17. Nc6 {[%clk 0:00:31]}  Naxc6 {[%clk 0:02:01]} 18. dxc6 {[%clk 0:00:32]}  Nxc6 {[%clk 0:01:57]} 19. Bxd6 {[%clk 0:00:31]}  Re8 {[%clk 0:01:52]} 20. Qd5 {[%clk 0:00:26]}  Re6 {[%clk 0:01:48]} 21. Rfd1 {[%clk 0:00:21]}  Na5 {[%clk 0:01:20]} 22. Qd2 {[%clk 0:00:20]}  Nc4 {[%clk 0:01:18]} 23. Rxc4 {[%clk 0:00:09]}  bxc4 {[%clk 0:01:16]} 24. Qb4 {[%clk 0:00:09]}  Qc8 {[%clk 0:01:10]} 25. Bg3 {[%clk 0:00:08]}  Be4 {[%clk 0:01:03]} 26. Bg4 {[%clk 0:00:06]}  f5 {[%clk 0:01:03]} 27. Be2 {[%clk 0:00:06]}  Bd3 {[%clk 0:01:02]} 28. Bf3 {[%clk 0:00:05]}  Ra7 {[%clk 0:01:00]} 29. Bd6 {[%clk 0:00:04]}  Rd7 {[%clk 0:00:58]} 30. Bd5 {[%clk 0:00:04]}  Kf7 {[%clk 0:00:53]} 31. Re1 {[%clk 0:00:04]}  Be4 {[%clk 0:00:49]} 32. Bxc4 {[%clk 0:00:03]}  Rxd6 {[%clk 0:00:46]} 0-1


[Site "https://www.chess.com"]

[Event "Titled Tuesday Blitz March 01 Late 2022"]
[White "Martinez Alcantara, Jose Eduardo"]
[Black "Babazada, Khazar"]
[WhiteFideId "3805662"]
[BlackFideId "13413554"]
[WhiteElo "2690"]
[BlackElo "2418"]
[Result "0-1"]
[Round "05"]
[TimeControl "180+1"]
[Date "2022.03.01"]
[WhiteClock "0:00:05"]
[BlackClock "0:00:08"]

1. e4 {[%clk 0:03:00]}  Nf6 {[%clk 0:03:00]} 2. e5 {[%clk 0:03:00]}  Nd5 {[%clk 0:03:00]} 3. d4 {[%clk 0:03:01]}  d6 {[%clk 0:02:57]} 4. Nf3 {[%clk 0:03:01]}  Nb6 {[%clk 0:02:57]} 5. Be2 {[%clk 0:02:55]}  g6 {[%clk 0:02:57]} 6. O-O {[%clk 0:02:55]}  Bg7 {[%clk 0:02:57]} 7. exd6 {[%clk 0:02:55]}  cxd6 {[%clk 0:02:56]} 8. a4 {[%clk 0:02:51]}  a5 {[%clk 0:02:55]} 9. Nc3 {[%clk 0:02:51]}  O-O {[%clk 0:02:53]} 10. Nb5 {[%clk 0:02:48]}  Nc6 {[%clk 0:02:50]} 11. c3 {[%clk 0:02:44]}  Be6 {[%clk 0:02:49]} 12. Re1 {[%clk 0:02:39]}  h6 {[%clk 0:02:42]} 13. Bf4 {[%clk 0:02:35]}  Qd7 {[%clk 0:02:39]} 14. h3 {[%clk 0:02:34]}  Rae8 {[%clk 0:02:36]} 15. Qd2 {[%clk 0:02:32]}  Kh7 {[%clk 0:02:31]} 16. Bd3 {[%clk 0:02:31]}  Bf5 {[%clk 0:02:31]} 17. Bg3 {[%clk 0:02:21]}  Bxd3 {[%clk 0:01:58]} 18. Qxd3 {[%clk 0:02:22]}  d5 {[%clk 0:01:59]} 19. b3 {[%clk 0:02:19]}  Qf5 {[%clk 0:01:57]} 20. Qd2 {[%clk 0:01:54]}  Nc8 {[%clk 0:01:49]} 21. Re2 {[%clk 0:01:48]}  Qd7 {[%clk 0:01:47]} 22. Rae1 {[%clk 0:01:46]}  e6 {[%clk 0:01:46]} 23. Qd3 {[%clk 0:01:06]}  N8e7 {[%clk 0:01:45]} 24. Bd6 {[%clk 0:01:04]}  Rc8 {[%clk 0:01:41]} 25. Bh2 {[%clk 0:01:04]}  Rcd8 {[%clk 0:01:12]} 26. g4 {[%clk 0:01:04]}  Kg8 {[%clk 0:01:03]} 27. Bg3 {[%clk 0:01:02]}  Nc8 {[%clk 0:00:36]} 28. Kg2 {[%clk 0:00:58]}  Rfe8 {[%clk 0:00:36]} 29. Bc7 {[%clk 0:00:55]}  Bf8 {[%clk 0:00:33]} 30. Ne5 {[%clk 0:00:49]}  Nxe5 {[%clk 0:00:28]} 31. dxe5 {[%clk 0:00:50]}  g5 {[%clk 0:00:28]} 32. Rf1 {[%clk 0:00:47]}  Ne7 {[%clk 0:00:28]} 33. Bxd8 {[%clk 0:00:47]}  Qxd8 {[%clk 0:00:27]} 34. f4 {[%clk 0:00:39]}  gxf4 {[%clk 0:00:27]} 35. Rxf4 {[%clk 0:00:39]}  Ng6 {[%clk 0:00:26]} 36. Rf1 {[%clk 0:00:38]}  Qg5 {[%clk 0:00:19]} 37. Qe3 {[%clk 0:00:35]}  Bg7 {[%clk 0:00:20]} 38. c4 {[%clk 0:00:29]}  dxc4 {[%clk 0:00:19]} 39. bxc4 {[%clk 0:00:28]}  Bxe5 {[%clk 0:00:18]} 40. Qxg5 {[%clk 0:00:26]}  hxg5 {[%clk 0:00:19]} 41. Rd2 {[%clk 0:00:24]}  Rc8 {[%clk 0:00:19]} 42. Rc2 {[%clk 0:00:20]}  Kg7 {[%clk 0:00:18]} 43. Rd1 {[%clk 0:00:19]}  Rh8 {[%clk 0:00:17]} 44. Rd7 {[%clk 0:00:15]}  Nf4+ {[%clk 0:00:17]} 45. Kf1 {[%clk 0:00:14]}  Rxh3 {[%clk 0:00:17]} 46. Ke1 {[%clk 0:00:14]}  b6 {[%clk 0:00:13]} 47. c5 {[%clk 0:00:12]}  bxc5 {[%clk 0:00:13]} 48. Kd1 {[%clk 0:00:11]}  Nd3 {[%clk 0:00:11]} 49. Ke2 {[%clk 0:00:09]}  Nf4+ {[%clk 0:00:08]} 50. Kd1 {[%clk 0:00:10]}  Rh1+ {[%clk 0:00:07]} 51. Kd2 {[%clk 0:00:10]}  Nd5 {[%clk 0:00:07]} 52. Rxc5 {[%clk 0:00:08]}  Bf4+ {[%clk 0:00:08]} 53. Ke2 {[%clk 0:00:09]}  Rh2+ {[%clk 0:00:08]} 54. Ke1 {[%clk 0:00:08]}  Ne3 {[%clk 0:00:07]} 55. Rxg5+ {[%clk 0:00:04]}  Bxg5 {[%clk 0:00:08]} 56. Nd4 {[%clk 0:00:05]}  Bh4# {[%clk 0:00:08]} 0-1


[Site "https://www.chess.com"]

[Event "Titled Tuesday Blitz March 01 Late 2022"]
[White "Mikhalsky, Vladimir"]
[Black "Sailer, Mike"]
[WhiteFideId "14144352"]
[BlackFideId "2012901"]
[WhiteElo "2248"]
[BlackElo "2109"]
[Result "1-0"]
[Round "05"]
[TimeControl "180+1"]
[Date "2022.03.02"]
[WhiteClock "0:00:51"]
[BlackClock "0:00:01"]

1. c4 {[%clk 0:02:58]}  c6 {[%clk 0:02:59]} 2. g3 {[%clk 0:02:57]}  d5 {[%clk 0:02:57]} 3. Bg2 {[%clk 0:02:57]}  Nf6 {[%clk 0:02:57]} 4. Nf3 {[%clk 0:02:57]}  Bf5 {[%clk 0:02:51]} 5. O-O {[%clk 0:02:55]}  e6 {[%clk 0:02:44]} 6. b3 {[%clk 0:02:53]}  Be7 {[%clk 0:02:42]} 7. Bb2 {[%clk 0:02:53]}  O-O {[%clk 0:02:40]} 8. d3 {[%clk 0:02:53]}  a6 {[%clk 0:02:28]} 9. Nbd2 {[%clk 0:02:50]}  Nbd7 {[%clk 0:02:25]} 10. Re1 {[%clk 0:02:49]}  h6 {[%clk 0:02:25]} 11. a3 {[%clk 0:02:47]}  Bh7 {[%clk 0:02:25]} 12. Rc1 {[%clk 0:02:45]}  b5 {[%clk 0:02:25]} 13. Rc2 {[%clk 0:02:39]}  a5 {[%clk 0:02:17]} 14. Qa1 {[%clk 0:02:37]}  dxc4 {[%clk 0:02:15]} 15. bxc4 {[%clk 0:02:36]}  b4 {[%clk 0:02:16]} 16. Nd4 {[%clk 0:02:17]}  Qc7 {[%clk 0:02:12]} 17. Nxc6 {[%clk 0:02:16]}  Bc5 {[%clk 0:01:55]} 18. Nd4 {[%clk 0:02:07]}  bxa3 {[%clk 0:01:44]} 19. Bxa3 {[%clk 0:02:05]}  Bxa3 {[%clk 0:01:41]} 20. Qxa3 {[%clk 0:02:03]}  Rab8 {[%clk 0:01:41]} 21. Nc6 {[%clk 0:01:54]}  Rb6 {[%clk 0:01:31]} 22. Nxa5 {[%clk 0:01:41]}  Ra6 {[%clk 0:01:29]} 23. Ndb3 {[%clk 0:01:40]}  Nc5 {[%clk 0:01:21]} 24. Qxc5 {[%clk 0:01:39]}  Qxc5 {[%clk 0:01:21]} 25. Nxc5 {[%clk 0:01:38]}  Rxa5 {[%clk 0:01:22]} 26. Nb7 {[%clk 0:01:33]}  Ra7 {[%clk 0:01:16]} 27. Rb1 {[%clk 0:01:30]}  e5 {[%clk 0:01:09]} 28. c5 {[%clk 0:01:30]}  e4 {[%clk 0:01:09]} 29. Rc3 {[%clk 0:01:13]}  Nd5 {[%clk 0:01:05]} 30. Rcb3 {[%clk 0:01:13]}  f5 {[%clk 0:00:47]} 31. c6 {[%clk 0:01:09]}  Rc8 {[%clk 0:00:34]} 32. Nd6 {[%clk 0:01:09]}  Rd8 {[%clk 0:00:21]} 33. Rb8 {[%clk 0:01:08]}  Ra8 {[%clk 0:00:18]} 34. Rxa8 {[%clk 0:01:07]}  Rxa8 {[%clk 0:00:18]} 35. dxe4 {[%clk 0:01:03]}  fxe4 {[%clk 0:00:18]} 36. Bxe4 {[%clk 0:01:02]}  Bxe4 {[%clk 0:00:18]} 37. Nxe4 {[%clk 0:01:02]}  Kf8 {[%clk 0:00:18]} 38. Rb5 {[%clk 0:01:01]}  Nc7 {[%clk 0:00:10]} 39. Rb7 {[%clk 0:01:00]}  Nd5 {[%clk 0:00:07]} 40. Nd6 {[%clk 0:00:57]}  Rd8 {[%clk 0:00:05]} 41. Rf7+ {[%clk 0:00:52]}  Kg8 {[%clk 0:00:04]} 42. Rd7 {[%clk 0:00:52]}  Rxd7 {[%clk 0:00:01]} 43. cxd7 {[%clk 0:00:51]} 1-0


[Site "https://www.chess.com"]

[Event "Titled Tuesday Blitz March 01 Late 2022"]
[White "Mogranzini, Roberto"]
[Black "Petrova, Irina"]
[WhiteFideId "810894"]
[BlackFideId "14124122"]
[WhiteElo "2469"]
[BlackElo "1988"]
[Result "1-0"]
[Round "05"]
[TimeControl "180+1"]
[Date "2022.03.02"]
[WhiteClock "0:01:39"]
[BlackClock "0:01:48"]

1. e4 {[%clk 0:03:00]}  d6 {[%clk 0:03:00]} 2. d4 {[%clk 0:03:01]}  Nf6 {[%clk 0:03:00]} 3. Nc3 {[%clk 0:03:00]}  e5 {[%clk 0:03:00]} 4. dxe5 {[%clk 0:02:59]}  dxe5 {[%clk 0:03:01]} 5. Qxd8+ {[%clk 0:02:59]}  Kxd8 {[%clk 0:03:02]} 6. Bc4 {[%clk 0:02:59]}  Ke8 {[%clk 0:03:00]} 7. a3 {[%clk 0:02:58]}  c6 {[%clk 0:02:59]} 8. Nf3 {[%clk 0:02:57]}  Bd6 {[%clk 0:02:59]} 9. Be3 {[%clk 0:02:55]}  b5 {[%clk 0:02:58]} 10. Ba2 {[%clk 0:02:54]}  Nbd7 {[%clk 0:02:56]} 11. Rd1 {[%clk 0:02:51]}  Ke7 {[%clk 0:02:52]} 12. O-O {[%clk 0:02:49]}  Bb7 {[%clk 0:02:51]} 13. Ng5 {[%clk 0:02:34]}  Rhf8 {[%clk 0:02:50]} 14. Nxf7 {[%clk 0:02:33]}  Bc5 {[%clk 0:02:29]} 15. Bxc5+ {[%clk 0:01:56]}  Nxc5 {[%clk 0:02:30]} 16. Nxe5 {[%clk 0:01:55]}  Rad8 {[%clk 0:02:23]} 17. f3 {[%clk 0:01:53]}  a5 {[%clk 0:02:14]} 18. Ne2 {[%clk 0:01:50]}  Na4 {[%clk 0:02:07]} 19. b4 {[%clk 0:01:44]}  axb4 {[%clk 0:02:03]} 20. axb4 {[%clk 0:01:45]}  Nb6 {[%clk 0:02:01]} 21. Nd4 {[%clk 0:01:39]}  g6 {[%clk 0:01:48]} 22. Ndxc6+ {[%clk 0:01:39]} 1-0


[Site "https://www.chess.com"]

[Event "Titled Tuesday Blitz March 01 Late 2022"]
[White "Muradli, Mahammad"]
[Black "Indjic, Aleksandar"]
[WhiteFideId "13409301"]
[BlackFideId "911925"]
[WhiteElo "2645"]
[BlackElo "2616"]
[Result "1-0"]
[Round "05"]
[TimeControl "180+1"]
[Date "2022.03.01"]
[WhiteClock "0:00:20"]
[BlackClock "0:00:05"]

1. Nf3 {[%clk 0:02:55]}  d5 {[%clk 0:02:58]} 2. g3 {[%clk 0:02:48]}  Nd7 {[%clk 0:02:58]} 3. d4 {[%clk 0:02:48]}  Nb6 {[%clk 0:02:58]} 4. Bg2 {[%clk 0:02:48]}  Bf5 {[%clk 0:02:57]} 5. O-O {[%clk 0:02:49]}  h6 {[%clk 0:02:54]} 6. a4 {[%clk 0:02:49]}  a5 {[%clk 0:02:53]} 7. b3 {[%clk 0:02:50]}  Nf6 {[%clk 0:02:52]} 8. Ba3 {[%clk 0:02:49]}  c6 {[%clk 0:02:51]} 9. Re1 {[%clk 0:02:48]}  e6 {[%clk 0:02:50]} 10. Bxf8 {[%clk 0:02:48]}  Kxf8 {[%clk 0:02:51]} 11. Nfd2 {[%clk 0:02:45]}  Kg8 {[%clk 0:02:32]} 12. Nc3 {[%clk 0:02:44]}  Kh7 {[%clk 0:02:30]} 13. e4 {[%clk 0:02:44]}  Bg6 {[%clk 0:02:29]} 14. e5 {[%clk 0:02:22]}  Nfd7 {[%clk 0:02:28]} 15. f4 {[%clk 0:02:22]}  c5 {[%clk 0:02:25]} 16. Nf3 {[%clk 0:02:23]}  Rf8 {[%clk 0:02:06]} 17. Nb5 {[%clk 0:02:22]}  cxd4 {[%clk 0:01:56]} 18. Nfxd4 {[%clk 0:02:22]}  Kg8 {[%clk 0:01:56]} 19. Rc1 {[%clk 0:02:20]}  Nc5 {[%clk 0:01:52]} 20. Nd6 {[%clk 0:01:58]}  Nc8 {[%clk 0:01:51]} 21. N4b5 {[%clk 0:01:58]}  Nxd6 {[%clk 0:01:50]} 22. Nxd6 {[%clk 0:01:59]}  Qb6 {[%clk 0:01:48]} 23. Qd4 {[%clk 0:01:56]}  Nxa4 {[%clk 0:01:48]} 24. Qxb6 {[%clk 0:01:54]}  Nxb6 {[%clk 0:01:48]} 25. c4 {[%clk 0:01:52]}  a4 {[%clk 0:01:27]} 26. c5 {[%clk 0:01:42]}  Nd7 {[%clk 0:01:23]} 27. b4 {[%clk 0:01:29]}  a3 {[%clk 0:01:06]} 28. Nxb7 {[%clk 0:01:24]}  a2 {[%clk 0:01:06]} 29. Ra1 {[%clk 0:01:22]}  Rfb8 {[%clk 0:01:02]} 30. c6 {[%clk 0:01:22]}  Nb6 {[%clk 0:01:02]} 31. b5 {[%clk 0:01:16]}  Bb1 {[%clk 0:00:59]} 32. Nd6 {[%clk 0:01:13]}  Ra7 {[%clk 0:00:54]} 33. Rc1 {[%clk 0:01:01]}  Rc7 {[%clk 0:00:53]} 34. Bf3 {[%clk 0:00:50]}  Ra8 {[%clk 0:00:53]} 35. Bd1 {[%clk 0:00:46]}  Bd3 {[%clk 0:00:38]} 36. Bb3 {[%clk 0:00:34]}  Bb1 {[%clk 0:00:35]} 37. Bc2 {[%clk 0:00:33]}  Bxc2 {[%clk 0:00:06]} 38. Rxc2 {[%clk 0:00:34]}  Rca7 {[%clk 0:00:06]} 39. c7 {[%clk 0:00:24]}  Nc4 {[%clk 0:00:06]} 40. c8=Q+ {[%clk 0:00:21]}  Rxc8 {[%clk 0:00:05]} 41. Nxc8 {[%clk 0:00:22]}  Ra5 {[%clk 0:00:05]} 42. Nd6 {[%clk 0:00:20]} 1-0


[Site "https://www.chess.com"]

[Event "Titled Tuesday Blitz March 01 Late 2022"]
[White "Novikova, Galina"]
[Black "Debray, Christopher"]
[WhiteFideId "4157095"]
[BlackFideId "630810"]
[WhiteElo "1863"]
[BlackElo "2369"]
[Result "1-0"]
[Round "05"]
[TimeControl "180+1"]
[Date "2022.03.02"]
[WhiteClock "0:01:08"]
[BlackClock "0:00:03"]

1. e4 {[%clk 0:03:00]}  e6 {[%clk 0:02:55]} 2. Nf3 {[%clk 0:03:00]}  d5 {[%clk 0:02:50]} 3. e5 {[%clk 0:03:01]}  c5 {[%clk 0:02:40]} 4. b4 {[%clk 0:03:01]}  d4 {[%clk 0:02:40]} 5. bxc5 {[%clk 0:03:01]}  Bxc5 {[%clk 0:02:39]} 6. Bd3 {[%clk 0:03:01]}  Nc6 {[%clk 0:02:31]} 7. O-O {[%clk 0:03:02]}  Nge7 {[%clk 0:02:27]} 8. c3 {[%clk 0:03:03]}  O-O {[%clk 0:02:17]} 9. Re1 {[%clk 0:03:01]}  Ng6 {[%clk 0:02:10]} 10. Qe2 {[%clk 0:02:55]}  Nf4 {[%clk 0:01:52]} 11. Qe4 {[%clk 0:02:51]}  Nxd3 {[%clk 0:01:50]} 12. Qxd3 {[%clk 0:02:52]}  b6 {[%clk 0:01:38]} 13. Na3 {[%clk 0:02:48]}  Bb7 {[%clk 0:01:32]} 14. Nc4 {[%clk 0:02:46]}  Qd5 {[%clk 0:01:18]} 15. Ng5 {[%clk 0:02:29]}  g6 {[%clk 0:01:14]} 16. Qh3 {[%clk 0:02:29]}  h5 {[%clk 0:01:12]} 17. d3 {[%clk 0:02:28]}  dxc3 {[%clk 0:01:09]} 18. Be3 {[%clk 0:02:23]}  Nd4 {[%clk 0:01:06]} 19. Ne4 {[%clk 0:02:15]}  Be7 {[%clk 0:00:57]} 20. Nxc3 {[%clk 0:02:12]}  Qd7 {[%clk 0:00:47]} 21. Rac1 {[%clk 0:01:54]}  Rac8 {[%clk 0:00:42]} 22. Ne4 {[%clk 0:01:54]}  Kg7 {[%clk 0:00:38]} 23. Rcd1 {[%clk 0:01:22]}  Nc2 {[%clk 0:00:30]} 24. Re2 {[%clk 0:01:22]}  Nxe3 {[%clk 0:00:29]} 25. Rxe3 {[%clk 0:01:21]}  Rxc4 {[%clk 0:00:27]} 26. Ng3 {[%clk 0:01:15]}  Rd4 {[%clk 0:00:20]} 27. Nxh5+ {[%clk 0:01:15]}  gxh5 {[%clk 0:00:15]} 28. Qxh5 {[%clk 0:01:15]}  Rg8 {[%clk 0:00:05]} 29. Rg3+ {[%clk 0:01:06]}  Kf8 {[%clk 0:00:04]} 30. Qh6+ {[%clk 0:01:06]}  Ke8 {[%clk 0:00:05]} 31. Rxg8+ {[%clk 0:01:07]}  Bf8 {[%clk 0:00:03]} 32. Qxf8# {[%clk 0:01:08]} 1-0


[Site "https://www.chess.com"]

[Event "Titled Tuesday Blitz March 01 Late 2022"]
[White "Okike, David"]
[Black "Rudykh, Stepan"]
[WhiteFideId "8500134"]
[BlackFideId "4180321"]
[WhiteElo "2232"]
[BlackElo "2109"]
[Result "0-1"]
[Round "05"]
[TimeControl "180+1"]
[Date "2022.03.02"]
[WhiteClock "0:02:28"]
[BlackClock "0:01:49"]

1. e4 {[%clk 0:02:41]}  e6 {[%clk 0:02:58]} 2. d4 {[%clk 0:02:40]}  d5 {[%clk 0:02:59]} 3. Nc3 {[%clk 0:02:40]}  Bb4 {[%clk 0:02:59]} 4. e5 {[%clk 0:02:40]}  c5 {[%clk 0:02:59]} 5. a3 {[%clk 0:02:40]}  Bxc3+ {[%clk 0:03:00]} 6. bxc3 {[%clk 0:02:40]}  Ne7 {[%clk 0:03:00]} 7. Qg4 {[%clk 0:02:40]}  cxd4 {[%clk 0:03:00]} 8. Qxg7 {[%clk 0:02:40]}  Rg8 {[%clk 0:02:59]} 9. Qxh7 {[%clk 0:02:40]}  Qc7 {[%clk 0:03:00]} 10. Ne2 {[%clk 0:02:40]}  Nbc6 {[%clk 0:03:00]} 11. f4 {[%clk 0:02:40]}  Bd7 {[%clk 0:03:01]} 12. Rb1 {[%clk 0:02:38]}  dxc3 {[%clk 0:02:51]} 13. Qd3 {[%clk 0:02:37]}  Nf5 {[%clk 0:02:41]} 14. Qxc3 {[%clk 0:02:37]}  d4 {[%clk 0:02:29]} 15. Qc4 {[%clk 0:02:36]}  Rc8 {[%clk 0:02:13]} 16. Kf2 {[%clk 0:02:33]}  Nxe5 {[%clk 0:01:59]} 17. Qxc7 {[%clk 0:02:32]}  Ng4+ {[%clk 0:01:58]} 18. Kf3 {[%clk 0:02:30]}  Rxc7 {[%clk 0:01:59]} 19. h3 {[%clk 0:02:28]}  Bc6# {[%clk 0:01:49]} 0-1


[Site "https://www.chess.com"]